fUST/lending_fUST_20240812
["ID","MTS","AMOUNT","RATE_DAILY","PERIOD"]
[334692043,1723477653131,-401.64744829,0.00016246,2]
[334692044,1723477653153,-500.0,0.00016246,2]
[334692045,1723477653176,-500.0,0.00016246,2]
[334692046,1723477653198,-500.0,0.00016246,2]
[334692047,1723477653220,-500.0,0.00016246,2]
[334692048,1723477653243,-336.09245174,0.00016246,2]
[334692049,1723477653265,-500.0,0.00016246,2]
[334692050,1723477653287,-500.0,0.00016246,2]
[334692051,1723477653309,-513.34179872,0.00016246,2]
[334692052,1723477653336,-500.0,0.00016246,2]
[334692053,1723477653361,-651.66,0.00016246,2]
[334692054,1723477653383,-2910.2,0.00016246,2]
[334692055,1723477653404,-500.0,0.00016246,2]
[334692056,1723477653425,-715.91,0.00016246,2]
[334692057,1723477653450,-500.0,0.00016246,2]
[334692058,1723477653472,-523.12,0.00016246,2]
[334692059,1723477653493,-1163.85,0.00016246,2]
[334692060,1723477653514,-513.96709265,0.00016246,2]
[334692061,1723477653535,-500.0,0.00016246,2]
[334692062,1723477653557,-512.05556544,0.00016246,2]
[334692063,1723477653578,-500.0,0.00016246,2]
[334692064,1723477653604,-207.41790081,0.00016246,2]
[334692065,1723477653633,-500.0,0.00016246,2]
[334692066,1723477653657,-500.0,0.00016246,2]
[334692067,1723477653678,-500.0,0.00016246,2]
[334692068,1723477653700,-500.0,0.00016246,2]
[334692069,1723477653720,-500.0,0.00016246,2]
[334692070,1723477653741,-1203.23,0.00016246,2]
[334692071,1723477653764,-500.0,0.00016246,2]
[334692072,1723477653786,-1330.94,0.00016246,2]
[334692073,1723477653808,-509.26425576,0.00016246,2]
[334692074,1723477653829,-514.72593159,0.00016246,2]
[334692075,1723477653851,-626.7,0.00016246,2]
[334692076,1723477653872,-521.12,0.00016246,2]
[334692077,1723477653894,-1279.6,0.00016246,2]
[334692078,1723477653922,-500.0,0.00016246,2]
[334692079,1723477653945,-500.0,0.00016246,2]
[334692080,1723477653967,-597.27327732,0.00016246,2]
[334692081,1723477653989,-500.0,0.00016246,2]
[334692082,1723477654011,-607.66,0.00016246,2]
[334692083,1723477654032,-807.72,0.00016246,2]
[334692084,1723477654055,-500.0,0.00016246,2]
[334692085,1723477654077,-500.0,0.00016246,2]
[334692086,1723477654106,-500.0,0.00016246,2]
[334692087,1723477654130,-806.87,0.00016246,2]
[334692088,1723477654152,-500.0,0.00016246,2]
[334692089,1723477654173,-500.0,0.00016246,2]
[334692090,1723477654195,-500.0,0.00016246,2]
[334692091,1723477654217,-500.0,0.00016246,2]
[334692092,1723477654238,-500.0,0.00016246,2]
[334692093,1723477654261,-500.0,0.00016246,2]
[334692094,1723477654283,-500.0,0.00016246,2]
[334692095,1723477654305,-832.37,0.00016246,2]
[334692096,1723477654327,-500.0,0.00016246,2]
[334692097,1723477654348,-727.51,0.00016246,2]
[334692098,1723477654369,-1010.31,0.00016246,2]
[334692099,1723477654390,-500.0,0.00016246,2]
[334692100,1723477654411,-500.0,0.00016246,2]
[334692101,1723477654432,-500.0,0.00016246,2]
[334692102,1723477654453,-151.0,0.00016246,2]
[334692103,1723477654475,-500.0,0.00016246,2]
[334692104,1723477654497,-500.0,0.00016246,2]
[334692105,1723477654519,-500.0,0.00016246,2]
[334692106,1723477654541,-500.0,0.00016246,2]
[334692107,1723477654564,-500.0,0.00016246,2]
[334692108,1723477654585,-500.0,0.00016246,2]
[334692109,1723477654607,-500.0,0.00016246,2]
[334692110,1723477654633,-500.0,0.00016246,2]
[334692111,1723477654658,-500.0,0.00016246,2]
[334692112,1723477654680,-500.0,0.00016246,2]
[334692113,1723477654704,-500.0,0.00016246,2]
[334692114,1723477654725,-500.0,0.00016246,2]
[334692115,1723477654746,-500.0,0.00016246,2]
[334692116,1723477654767,-156.649056,0.00016246,2]
[334692117,1723477654789,-783.07,0.00016246,2]
[334692118,1723477654812,-156.649056,0.00016246,2]
[334692119,1723477654833,-530.34207039,0.00016246,2]
[334692120,1723477654854,-500.0,0.00016246,2]
[334692121,1723477654874,-500.0,0.00016246,2]
[334692122,1723477654895,-991.97,0.00016246,2]
[334692123,1723477654920,-500.0,0.00016246,2]
[334692124,1723477654944,-991.28,0.00016246,2]
[334692125,1723477654967,-500.0,0.00016246,2]
[334692126,1723477654992,-500.0,0.00016246,2]
[334692127,1723477655013,-500.0,0.00016246,2]
[334692128,1723477655034,-500.0,0.00016246,2]
[334692129,1723477655055,-875.88,0.00016246,2]
[334692130,1723477655077,-500.0,0.00016246,2]
[334692131,1723477655098,-500.0,0.00016246,2]
[334692132,1723477655119,-500.0,0.00016246,2]
[334692133,1723477655141,-525.3092981,0.00016246,2]
[334692134,1723477655163,-500.0,0.00016246,2]
[334692135,1723477655185,-500.0,0.00016246,2]
[334692136,1723477655206,-500.0,0.00016246,2]
[334692137,1723477655227,-701.33,0.00016246,2]
[334692138,1723477655250,-656.1,0.00016246,2]
[334692139,1723477655272,-500.0,0.00016246,2]
[334692140,1723477655293,-500.0,0.00016246,2]
[334692141,1723477655315,-535.14,0.00016246,2]
[334692142,1723477655336,-1494.75,0.00016246,2]
[334692143,1723477655357,-500.0,0.00016246,2]
[334692144,1723477655377,-529.34,0.00016246,2]
[334692145,1723477655398,-500.0,0.00016246,2]
[334692146,1723477655419,-151.0,0.00016246,2]
[334692147,1723477655441,-560.17,0.00016246,2]
[334692148,1723477655463,-1949.88,0.00016246,2]
[334692149,1723477655484,-500.0,0.00016246,2]
[334692150,1723477655505,-699.43,0.00016246,2]
[334692151,1723477655526,-593.45,0.00016246,2]
[334692152,1723477655548,-413.764054,0.00016246,2]
[334692153,1723477655569,-500.0,0.00016246,2]
[334692154,1723477655590,-413.764054,0.00016246,2]
[334692155,1723477655763,-638.51270259,0.00016246,2]
[334692156,1723477655785,-733.21,0.00016246,2]
[334692157,1723477655805,-500.0,0.00016246,2]
[334692158,1723477655826,-500.0,0.00016246,2]
[334692159,1723477655860,-500.0,0.00016246,2]
[334692160,1723477655881,-500.0,0.00016246,2]
[334692161,1723477655907,-500.0,0.00016246,2]
[334692162,1723477655928,-971.04,0.00016246,2]
[334692163,1723477655949,-608.87,0.00016246,2]
[334692164,1723477655969,-500.0,0.00016246,2]
[334692165,1723477655994,-643.61,0.00016246,2]
[334692166,1723477656014,-500.0,0.00016246,2]
[334692167,1723477656035,-316.094647,0.00016246,2]
[334692168,1723477656058,-950.28,0.00016246,2]
[334692169,1723477656079,-730.47,0.00016246,2]
[334692170,1723477656101,-316.094647,0.00016246,2]
[334692171,1723477656124,-151.0,0.00016246,2]
[334692172,1723477656197,-151.0,0.00016246,2]
[334692173,1723477656219,-1366.24,0.00016246,2]
[334692174,1723477656240,-500.0,0.00016246,2]
[334692175,1723477656261,-826.23,0.00016246,2]
[334692176,1723477656284,-502.81348,0.00016246,2]
[334692177,1723477656305,-500.0,0.00016246,2]
[334692178,1723477656326,-502.81348,0.00016246,2]
[334692179,1723477656346,-156.98248185,0.00016309,2]
[334692180,1723477656367,-201.67599291,0.00016309,2]
[334692181,1723477656388,-535.1745485,0.00016347,2]
[334692182,1723477656408,-154.74467129,0.00016347,2]
[334692183,1723477656430,-182.2907837,0.00016347,2]
[334692184,1723477656452,-522.78,0.00016351,2]
[334692185,1723477656472,-2451.08,0.00016351,2]
[334692186,1723477656493,-500.0,0.00016351,2]
[334692187,1723477656515,-9323.84,0.00016351,2]
[334692188,1723477656535,-1005.17,0.00016351,2]
[334692189,1723477656557,-507.2578709,0.00016351,2]
[334692190,1723477656577,-533.56,0.00016351,2]
[334692191,1723477656597,-500.0,0.00016351,2]
[334692192,1723477656618,-1570.17,0.00016351,2]
[334692193,1723477656638,-500.0,0.00016351,2]
[334692194,1723477656659,-989.92,0.00016351,2]
[334692195,1723477656679,-500.0,0.00016351,2]
[334692196,1723477656701,-500.0,0.00016351,2]
[334692197,1723477656721,-6140.5,0.00016351,2]
[334692198,1723477656742,-1961.64,0.00016351,2]
[334692199,1723477656763,-1297.58,0.00016351,2]
[334692200,1723477656785,-500.0,0.00016351,2]
[334692201,1723477656807,-500.0,0.00016351,2]
[334692202,1723477656828,-500.0,0.00016351,2]
[334692203,1723477656849,-567.87,0.00016352,2]
[334692204,1723477656870,-1401.99,0.00016352,2]
[334692205,1723477656890,-890.0,0.00016352,2]
[334692206,1723477656913,-500.0,0.00016352,2]
[334692207,1723477656933,-500.0,0.00016352,2]
[334692208,1723477656955,-990.82,0.00016352,2]
[334692209,1723477656978,-500.0,0.00016352,2]
[334692210,1723477657001,-500.0,0.00016352,2]
[334692211,1723477657024,-500.0,0.00016352,2]
[334692212,1723477657048,-887.8,0.00016352,2]
[334692213,1723477657071,-1076.44,0.00016352,2]
[334692214,1723477657094,-281.520702,0.00016352,2]
[334692215,1723477657120,-521.45,0.00016352,2]
[334692216,1723477657144,-500.0,0.00016352,2]
[334692217,1723477657166,-151.0,0.00016352,2]
[334692218,1723477657190,-500.0,0.00016352,2]
[334692219,1723477657211,-1762.91,0.00016352,2]
[334692220,1723477657232,-1148.2,0.00016352,2]
[334692221,1723477657254,-625.0,0.00016352,2]
[334692222,1723477657276,-1833.71,0.00016352,2]
[334692223,1723477657298,-557.37,0.00016352,2]
[334692224,1723477657321,-772.32,0.00016352,2]
[334692225,1723477657344,-1254.45,0.00016352,2]
[334692226,1723477657367,-1715.78,0.00016352,2]
[334692227,1723477657390,-1307.89,0.00016352,2]
[334692228,1723477657412,-8777.12,0.00016352,2]
[334692229,1723477657434,-584.21,0.00016352,2]
[334692230,1723477657456,-513.72,0.00016352,2]
[334692231,1723477657477,-500.0,0.00016352,2]
[334692232,1723477657498,-2703.2,0.00016352,2]
[334692233,1723477657520,-500.0,0.00016352,2]
[334692234,1723477657543,-180.532013,0.00016352,2]
[334692235,1723477657564,-1648.34,0.00016352,2]
[334692236,1723477657586,-1566.53,0.00016352,2]
[334692237,1723477657608,-180.532013,0.00016352,2]
[334692238,1723477657630,-1426.58,0.00016352,2]
[334692239,1723477657652,-638.85,0.00016352,2]
[334692240,1723477657673,-572.656076,0.00016352,2]
[334692241,1723477657695,-500.0,0.00016352,2]
[334692242,1723477657717,-572.656076,0.00016352,2]
[334692243,1723477657742,-687.949945,0.00016352,2]
[334692244,1723477657765,-687.949945,0.00016352,2]
[334692245,1723477657786,-856.41,0.00016352,2]
[334692246,1723477657807,-1004.82,0.00016352,2]
[334692247,1723477657829,-1139.17,0.00016352,2]
[334692248,1723477657851,-263.724371,0.00016352,2]
[334692249,1723477657873,-151.0,0.00016352,2]
[334692250,1723477657897,-500.0,0.00016352,2]
[334692251,1723477657923,-263.724371,0.00016352,2]
[334692252,1723477657946,-500.0,0.00016352,2]
[334692253,1723477657969,-2065.65,0.00016352,2]
[334692254,1723477657992,-500.0,0.00016352,2]
[334692255,1723477658014,-500.0,0.00016352,2]
[334692256,1723477658037,-500.0,0.00016352,2]
[334692257,1723477658060,-500.0,0.00016352,2]
[334692258,1723477658081,-500.0,0.00016352,2]
[334692259,1723477658102,-672.77,0.00016352,2]
[334692260,1723477658124,-1209.36,0.00016352,2]
[334692261,1723477658146,-500.0,0.00016352,2]
[334692262,1723477658168,-318.07644,0.00016362,2]
[334692263,1723477658190,-318.07644,0.00016362,2]
[334692264,1723477658212,-477.635504,0.00016362,2]
[334692265,1723477658234,-477.635504,0.00016362,2]
[334692266,1723477658256,-771.8,0.00016362,2]
[334692267,1723477658278,-6062.95,0.00016362,2]
[334692268,1723477658300,-500.0,0.00016362,2]
[334692269,1723477658323,-937.51,0.00016362,2]
[334692270,1723477658345,-500.0,0.00016362,2]
[334692271,1723477658367,-500.0,0.00016362,2]
[334692272,1723477658389,-1206.07,0.00016362,2]
[334692273,1723477658411,-602.51,0.00016362,2]
[334692274,1723477658433,-2611.84,0.00016362,2]
[334692275,1723477658456,-719.54,0.00016362,2]
[334692276,1723477658479,-500.0,0.00016362,2]
[334692277,1723477658502,-3805.11,0.00016362,2]
[334692278,1723477658524,-500.0,0.00016362,2]
[334692279,1723477658546,-151.0,0.00016362,2]
[334692280,1723477658567,-805.89,0.00016362,2]
[334692281,1723477658588,-1215.72,0.00016362,2]
[334692282,1723477658613,-500.0,0.00016362,2]
[334692283,1723477658634,-413.764054,0.00016362,2]
[334692284,1723477658656,-574.86,0.00016362,2]
[334692285,1723477658679,-413.764054,0.00016362,2]
[334692286,1723477658703,-500.0,0.00016362,2]
[334692287,1723477658725,-1004.62,0.00016362,2]
[334692288,1723477658746,-1218.21,0.00016362,2]
[334692289,1723477658767,-639.62,0.00016362,2]
[334692290,1723477658788,-3139.53,0.00016362,2]
[334692291,1723477658810,-500.0,0.00016362,2]
[334692292,1723477658832,-316.094647,0.00016362,2]
[334692293,1723477658854,-316.094647,0.00016362,2]
[334692294,1723477658876,-151.0,0.00016362,2]
[334692295,1723477658899,-243.21,0.00016362,2]
[334692296,1723477658924,-1994.82,0.00016362,2]
[334692297,1723477658946,-502.81348,0.00016362,2]
[334692298,1723477658967,-502.81348,0.00016362,2]
[334692299,1723477658992,-200.0,0.00016438,2]
[334692300,1723477659014,-200.0,0.00016438,2]
[334692301,1723477659038,-348.7057126,0.00016438,2]
[334692302,1723477659062,-500.0,0.00016438,2]
[334692303,1723477659085,-500.0,0.00016438,2]
[334692304,1723477659108,-500.0,0.00016438,2]
[334692305,1723477659131,-500.0,0.00016438,2]
[334692306,1723477659154,-500.0,0.00016438,2]
[334692307,1723477659177,-500.0,0.00016438,2]
[334692308,1723477659198,-500.0,0.00016438,2]
[334692309,1723477659220,-500.0,0.00016438,2]
[334692310,1723477659244,-500.0,0.00016438,2]
[334692311,1723477659266,-500.0,0.00016438,2]
[334692312,1723477659288,-398.09901753,0.00016438,2]
[334692313,1723477659312,-500.0,0.00016438,2]
[334692314,1723477659335,-500.0,0.00016438,2]
[334692315,1723477659359,-74.41410066,0.00016438,2]
[334692316,1723477659956,-500.0,0.00015529,2]
[334692317,1723477659979,-301.29579535,0.00015712,2]
[334692318,1723477660003,-193.74,0.00015803,2]
[334692319,1723477660025,-636.65531725,0.00016347,2]
[334692320,1723477660045,-425.58589934,0.00016438,2]
[334692321,1723477660066,-500.0,0.00016438,2]
[334692322,1723477660088,-303.733673,0.00016438,2]
[334692323,1723477660110,-303.733673,0.00016438,2]
[334692324,1723477660133,-303.733673,0.00016438,2]
[334692325,1723477660155,-303.733673,0.00016438,2]
[334692326,1723477660177,-303.733673,0.00016438,2]
[334692327,1723477660199,-303.733673,0.00016438,2]
[334692328,1723477660223,-303.733673,0.00016438,2]
[334692329,1723477660244,-303.733673,0.00016438,2]
[334692330,1723477660266,-303.733673,0.00016438,2]
[334692331,1723477660287,-303.733673,0.00016438,2]
[334692332,1723477660308,-153.0,0.00016438,2]
[334692333,1723477660329,-153.0,0.00016438,2]
[334692334,1723477660349,-153.0,0.00016438,2]
[334692335,1723477660371,-153.0,0.00016438,2]
[334692336,1723477660393,-153.0,0.00016438,2]
[334692337,1723477660414,-153.0,0.00016438,2]
[334692338,1723477660435,-500.0,0.00016462,2]
[334692339,1723477660456,-500.0,0.00016462,2]
[334692340,1723477660478,-500.0,0.00016462,2]
[334692341,1723477660500,-500.0,0.00016462,2]
[334692342,1723477660521,-500.0,0.00016462,2]
[334692343,1723477660542,-1336.96,0.00016462,2]
[334692344,1723477660565,-500.0,0.00016462,2]
[334692345,1723477660586,-523.99970198,0.00016462,2]
[334692346,1723477660608,-151.0,0.00016463,2]
[334692347,1723477660630,-500.0,0.00016517,2]
[334692348,1723477660652,-928.85,0.00016517,2]
[334692349,1723477660672,-500.0,0.00016517,2]
[334692350,1723477660694,-500.0,0.00016517,2]
[334692351,1723477660716,-598.73,0.00016517,2]
[334692352,1723477660738,-500.0,0.00016517,2]
[334692353,1723477660759,-1395.29,0.00016517,2]
[334692354,1723477660780,-1207.23,0.00016517,2]
[334692355,1723477660801,-500.0,0.00016517,2]
[334692356,1723477660822,-500.0,0.00016517,2]
[334692357,1723477660843,-1819.56,0.00016517,2]
[334692358,1723477660865,-1064.74,0.00016517,2]
[334692359,1723477660887,-156.649056,0.00016517,2]
[334692360,1723477660910,-156.649056,0.00016517,2]
[334692361,1723477660930,-500.0,0.0001652,2]
[334692362,1723477660951,-500.0,0.0001652,2]
[334692363,1723477660974,-831.64,0.0001652,2]
[334692364,1723477660995,-500.0,0.0001652,2]
[334692365,1723477661019,-530.83196321,0.0001652,2]
[334692366,1723477661041,-500.0,0.0001652,2]
[334692367,1723477661064,-500.0,0.0001652,2]
[334692368,1723477661085,-500.0,0.0001652,2]
[334692369,1723477661105,-500.0,0.0001652,2]
[334692370,1723477661127,-500.0,0.0001652,2]
[334692371,1723477661149,-500.0,0.0001652,2]
[334692372,1723477661169,-500.0,0.0001652,2]
[334692373,1723477661190,-651.66,0.0001652,2]
[334692374,1723477661211,-2910.2,0.0001652,2]
[334692375,1723477661233,-500.0,0.0001652,2]
[334692376,1723477661255,-715.91,0.0001652,2]
[334692377,1723477661275,-500.0,0.0001652,2]
[334692378,1723477661295,-523.12,0.0001652,2]
[334692379,1723477661315,-1163.85,0.0001652,2]
[334692380,1723477661336,-500.0,0.0001652,2]
[334692381,1723477661356,-500.0,0.0001652,2]
[334692382,1723477661376,-500.0,0.0001652,2]
[334692383,1723477661397,-500.0,0.0001652,2]
[334692384,1723477661418,-511.2505231,0.0001652,2]
[334692385,1723477661439,-500.0,0.0001652,2]
[334692386,1723477661460,-500.0,0.0001652,2]
[334692387,1723477661481,-1203.23,0.0001652,2]
[334692388,1723477661503,-500.0,0.0001652,2]
[334692389,1723477661525,-1330.94,0.0001652,2]
[334692390,1723477661548,-626.7,0.0001652,2]
[334692391,1723477661571,-521.12,0.0001652,2]
[334692392,1723477661594,-1279.6,0.0001652,2]
[334692393,1723477661614,-481.0305294,0.0001652,2]
[334692394,1723477661635,-500.0,0.0001652,2]
[334692395,1723477661656,-607.66,0.0001652,2]
[334692396,1723477661679,-807.72,0.0001652,2]
[334692397,1723477661699,-500.0,0.0001652,2]
[334692398,1723477661720,-500.0,0.0001652,2]
[334692399,1723477661742,-500.0,0.0001652,2]
[334692400,1723477661763,-806.87,0.0001652,2]
[334692401,1723477661784,-500.0,0.0001652,2]
[334692402,1723477661805,-500.0,0.0001652,2]
[334692403,1723477661829,-500.0,0.0001652,2]
[334692404,1723477661849,-500.0,0.0001652,2]
[334692405,1723477661870,-500.0,0.0001652,2]
[334692406,1723477661890,-500.0,0.0001652,2]
[334692407,1723477661912,-500.0,0.0001652,2]
[334692408,1723477661934,-832.37,0.0001652,2]
[334692409,1723477661956,-500.0,0.0001652,2]
[334692410,1723477661978,-727.51,0.0001652,2]
[334692411,1723477662000,-1010.31,0.0001652,2]
[334692412,1723477662024,-500.0,0.0001652,2]
[334692413,1723477662045,-500.0,0.0001652,2]
[334692414,1723477662066,-500.0,0.0001652,2]
[334692415,1723477662086,-500.0,0.0001652,2]
[334692416,1723477662108,-500.0,0.0001652,2]
[334692417,1723477662129,-500.0,0.0001652,2]
[334692418,1723477662151,-500.0,0.0001652,2]
[334692419,1723477662172,-500.0,0.0001652,2]
[334692420,1723477662193,-500.0,0.0001652,2]
[334692421,1723477662214,-500.0,0.0001652,2]
[334692422,1723477662240,-500.0,0.0001652,2]
[334692423,1723477662262,-500.0,0.0001652,2]
[334692424,1723477662284,-500.0,0.0001652,2]
[334692425,1723477662307,-500.0,0.0001652,2]
[334692426,1723477662331,-500.0,0.0001652,2]
[334692427,1723477662356,-783.07,0.0001652,2]
[334692428,1723477662378,-500.0,0.0001652,2]
[334692429,1723477662399,-500.0,0.0001652,2]
[334692430,1723477662419,-991.97,0.0001652,2]
[334692431,1723477662442,-477.635504,0.0001652,2]
[334692432,1723477662464,-500.0,0.0001652,2]
[334692433,1723477662485,-991.28,0.0001652,2]
[334692434,1723477662506,-500.0,0.0001652,2]
[334692435,1723477662527,-377.8245219,0.0001652,2]
[334692436,1723477662547,-500.0,0.0001652,2]
[334692437,1723477662567,-500.0,0.0001652,2]
[334692438,1723477662588,-875.88,0.0001652,2]
[334692439,1723477662608,-500.0,0.0001652,2]
[334692440,1723477662629,-500.0,0.0001652,2]
[334692441,1723477662651,-500.0,0.0001652,2]
[334692442,1723477662672,-303.733673,0.0001652,2]
[334692443,1723477662693,-500.0,0.0001652,2]
[334692444,1723477662714,-303.733673,0.0001652,2]
[334692445,1723477662735,-500.0,0.0001652,2]
[334692446,1723477662757,-500.0,0.0001652,2]
[334692447,1723477662777,-701.33,0.0001652,2]
[334692448,1723477662797,-656.1,0.0001652,2]
[334692449,1723477662818,-151.0,0.0001652,2]
[334692450,1723477662838,-500.0,0.0001652,2]
[334692451,1723477662861,-500.0,0.0001652,2]
[334692453,1723477662881,-535.14,0.0001652,2]
[334692455,1723477662902,-1494.75,0.0001652,2]
[334692456,1723477662924,-500.0,0.0001652,2]
[334692457,1723477662945,-529.34,0.0001652,2]
[334692458,1723477662965,-500.0,0.0001652,2]
[334692459,1723477662987,-151.0,0.0001652,2]
[334692460,1723477663008,-560.17,0.0001652,2]
[334692461,1723477663028,-1949.88,0.0001652,2]
[334692462,1723477663051,-500.0,0.0001652,2]
[334692463,1723477663074,-699.43,0.0001652,2]
[334692464,1723477663094,-593.45,0.0001652,2]
[334692465,1723477663127,-413.764054,0.0001652,2]
[334692466,1723477663148,-500.0,0.0001652,2]
[334692467,1723477663172,-413.764054,0.0001652,2]
[334692468,1723477663193,-180.532013,0.0001652,2]
[334692469,1723477663215,-180.532013,0.0001652,2]
[334692471,1723477663237,-733.21,0.0001652,2]
[334692473,1723477663258,-500.0,0.0001652,2]
[334692474,1723477663279,-500.0,0.0001652,2]
[334692475,1723477663299,-500.0,0.0001652,2]
[334692476,1723477663319,-500.0,0.0001652,2]
[334692477,1723477663343,-572.656076,0.0001652,2]
[334692478,1723477663365,-572.656076,0.0001652,2]
[334692479,1723477663386,-687.949945,0.0001652,2]
[334692480,1723477663408,-687.949945,0.0001652,2]
[334692481,1723477663429,-263.724371,0.0001652,2]
[334692482,1723477663450,-151.0,0.0001652,2]
[334692483,1723477663671,-971.04,0.0001652,2]
[334692484,1723477663696,-263.724371,0.0001652,2]
[334692485,1723477663717,-608.87,0.0001652,2]
[334692486,1723477663738,-500.0,0.0001652,2]
[334692487,1723477663759,-643.61,0.0001652,2]
[334692488,1723477663779,-500.0,0.0001652,2]
[334692489,1723477663799,-950.28,0.0001652,2]
[334692490,1723477663820,-730.47,0.0001652,2]
[334692491,1723477663841,-1366.24,0.0001652,2]
[334692492,1723477663861,-500.0,0.0001652,2]
[334692493,1723477663881,-826.23,0.0001652,2]
[334692494,1723477663905,-500.0,0.0001652,2]
[334692495,1723477663928,-522.78,0.00016625,2]
[334692496,1723477663948,-2451.08,0.00016625,2]
[334692497,1723477663968,-500.0,0.00016625,2]
[334692498,1723477663992,-9323.84,0.00016625,2]
[334692499,1723477664014,-1005.17,0.00016625,2]
[334692500,1723477664033,-533.56,0.00016625,2]
[334692501,1723477664053,-500.0,0.00016625,2]
[334692502,1723477664073,-1570.17,0.00016625,2]
[334692503,1723477664094,-500.0,0.00016625,2]
[334692504,1723477664130,-989.92,0.00016625,2]
[334692505,1723477664150,-500.0,0.00016625,2]
[334692506,1723477664171,-500.0,0.00016625,2]
[334692507,1723477664192,-6140.5,0.00016625,2]
[334692508,1723477664212,-1961.64,0.00016625,2]
[334692509,1723477664233,-1297.58,0.00016625,2]
[334692510,1723477664253,-500.0,0.00016625,2]
[334692511,1723477664273,-500.0,0.00016625,2]
[334692512,1723477664295,-282.01,0.00016625,2]
[334692513,1723477664315,-567.87,0.00016626,2]
[334692514,1723477664334,-1401.99,0.00016626,2]
[334692516,1723477664355,-890.0,0.00016626,2]
[334692518,1723477664376,-500.0,0.00016626,2]
[334692519,1723477664397,-500.0,0.00016626,2]
[334692520,1723477664419,-990.82,0.00016626,2]
[334692521,1723477664441,-500.0,0.00016626,2]
[334692522,1723477664463,-500.0,0.00016626,2]
[334692523,1723477664484,-500.0,0.00016626,2]
[334692524,1723477664505,-887.8,0.00016626,2]
[334692525,1723477664527,-1076.44,0.00016626,2]
[334692526,1723477664549,-500.0,0.00016626,2]
[334692527,1723477664571,-500.0,0.00016626,2]
[334692528,1723477664593,-1762.91,0.00016626,2]
[334692529,1723477664630,-1148.2,0.00016626,2]
[334692530,1723477664651,-625.0,0.00016626,2]
[334692531,1723477664674,-1833.71,0.00016626,2]
[334692532,1723477664696,-557.37,0.00016626,2]
[334692533,1723477664716,-772.32,0.00016626,2]
[334692534,1723477664737,-1254.45,0.00016626,2]
[334692535,1723477664757,-1715.78,0.00016626,2]
[334692537,1723477664778,-1307.89,0.00016626,2]
[334692539,1723477664799,-8777.12,0.00016626,2]
[334692540,1723477664819,-584.21,0.00016626,2]
[334692541,1723477664840,-513.72,0.00016626,2]
[334692542,1723477664860,-500.0,0.00016626,2]
[334692543,1723477664881,-2703.2,0.00016626,2]
[334692544,1723477664905,-500.0,0.00016626,2]
[334692545,1723477664926,-1648.34,0.00016626,2]
[334692546,1723477664947,-1566.53,0.00016626,2]
[334692547,1723477664968,-1426.58,0.00016626,2]
[334692548,1723477664992,-638.85,0.00016626,2]
[334692549,1723477665013,-500.0,0.00016626,2]
[334692550,1723477665034,-856.41,0.00016626,2]